[Event "VI Sunway Sitges Open 2019"]
[Site "Sitges"]
[Date "2019.12.14"]
[Round "2.22"]
[White "Mascaro March, Pedro"]
[Black "Peralta, Fernando"]
[Result "0-1"]
[ECO "E16"]
[WhiteElo "2381"]
[BlackElo "2577"]
[Annotator "ChessBase"]
[PlyCount "92"]
[EventDate "2019.12.13"]
[EventType "swiss"]
[EventCountry "ESP"]
[SourceTitle "playchess.com"]
[Source "ChessBase"]
[SourceQuality "1"]
[TimeControl "40/5400+30:1800+30"]

1. d4 {[%emt 0:02:03]} Nf6 {[%emt 0:00:26]} 2. Nf3 {[%emt 0:00:13]} e6 {[%emt 0:00:29]} 3. c4 {[%emt 0:00:19]} b6 {[%emt 0:00:27]} 4. g3 {[%emt 0:00:25]} Bb7 {[%emt 0:00:34]} 5. Bg2 {[%emt 0:00:06]} Bb4+ {[%emt 0:00:09]} 6. Bd2 {[%emt 0:01:45]} a5 {[%emt 0:00:08]} 7. Nc3 {[%emt 0:01:09]} O-O {[%emt 0:03:32]} 8. O-O {[%emt 0:00:35]} d6 {[%emt 0:00:48]} 9. b3 {[%emt 0:02:31]} Nbd7 {[%emt 0:00:48]} 10. a3 {[%emt 0:00:21]} Bxc3 {[%emt 0:00:08]} 11. Bxc3 {[%emt 0:00:03]} Re8 {[%emt 0:10:58]} 12. Bb2 {[%emt 0:10:42]} Qe7 {[%emt 0:02:53]} 13. Re1 {[%emt 0:02:45]} Be4 {[%emt 0:03:26]} 14. Bh3 {[%emt 0:04:05]} c5 {[%emt 0:05:40]} 15. Nd2 {[%emt 0:04:30]} Bc6 {[%emt 0:07:43]} 16. e4 {[%emt 0:08:27]} cxd4 {[%emt 0:00:25]} 17. Bxd4 {[%emt 0:00:11]} e5 {[%emt 0:02:16]} 18. Be3 {[%emt 0:13:28]} Nc5 {[%emt 0:05:49]} 19. f3 {[%emt 0:04:03]} b5 {[%emt 0:01:41]} 20. Qc2 {[%emt 0:04:47]} b4 {[%emt 0:06:04]} 21. a4 {[%emt 0:01:40]} h5 {[%emt 0:03:29]} 22. Bg5 {[%emt 0:10:56]} Qa7 {[%emt 0:01:37]} 23. Kh1 {[%emt 0:02:06]} Nh7 {[%emt 0:00:53]} 24. Be3 {[%emt 0:00:16]} Qe7 {[%emt 0:00:13]} 25. Bf2 {[%emt 0:09:15]} Ng5 {[%emt 0:02:39]} 26. Bg2 {[%emt 0:00:38]} h4 {[%emt 0:01:20]} 27. gxh4 {[%emt 0:00:35]} Nge6 {[%emt 0:00:14]} 28. Nf1 {[%emt 0:05:09]} Nd4 {[%emt 0:05:02]} 29. Bxd4 {[%emt 0:00:04]} exd4 {[%emt 0:00:05]} 30. Rad1 {[%emt 0:01:32]} Qxh4 {[%emt 0:05:10]} 31. Ng3 {[%emt 0:00:49]} d3 {[%emt 0:02:49]} 32. Rxd3 {[%emt 0:01:49]} Nxd3 {[%emt 0:00:12]} 33. Qxd3 {[%emt 0:00:04]} Re6 {[%emt 0:00:42]} 34. Rd1 {[%emt 0:02:04]} Rh6 {[%emt 0:02:02]} 35. Nf1 {[%emt 0:00:06]} Re8 {[%emt 0:04:43]} 36. Qd4 {[%emt 0:00:27]} Rg6 {[%emt 0:07:48]} 37. Ne3 {[%emt 0:01:53]} Qf2 {[%emt 0:03:36]} 38. Rf1 {[%emt 0:01:28]} Qe2 {[%emt 0:01:45]} 39. Kg1 {[%emt 0:00:13]} Qa2 {[%emt 0:05:19]} 40. Qd1 {[%emt 0:00:00]} Qb2 {[%emt 0:00:00]} 41. Rf2 {[%emt 0:07:00]} Qe5 {[%emt 0:06:31]} 42. Kh1 {[%emt 0:07:36]} Qc5 {[%emt 0:12:56]} 43. Qd3 {[%emt 0:02:35]} f5 {[%emt 0:00:45]} 44. Rd2 {[%emt 0:00:39]} fxe4 {[%emt 0:01:05]} 45. fxe4 {[%emt 0:00:08]} Qe5 {[%emt 0:04:24]} 46. Qd4 {[%emt 0:00:37]} Bxe4 {[%emt 0:01:25]} 0-1

[Event "VI Sunway Sitges Open 2019"]
[Site "Sitges"]
[Date "2019.12.14"]
[Round "2.23"]
[White "Lopez Martinez, Josep Manuel"]
[Black "Minero Pineda, Sergio"]
[Result "1-0"]
[ECO "E11"]
[WhiteElo "2561"]
[BlackElo "2381"]
[Annotator "ChessBase"]
[PlyCount "91"]
[EventDate "2019.12.13"]
[EventType "swiss"]
[EventCountry "ESP"]
[SourceTitle "playchess.com"]
[Source "ChessBase"]
[SourceQuality "1"]
[TimeControl "40/5400+30:1800+30"]

1. d4 {[%emt 0:11:38]} Nf6 {[%emt 0:00:00]} 2. c4 {[%emt 0:01:29]} e6 {[%emt 0:00:24]} 3. Nf3 {[%emt 0:00:56]} Bb4+ {[%emt 0:00:30]} 4. Bd2 {[%emt 0:01:17]} Qe7 {[%emt 0:01:06]} 5. g3 {[%emt 0:01:29]} Bxd2+ {[%emt 0:00:17]} 6. Qxd2 {[%emt 0:02:57]} Nc6 {[%emt 0:00:18]} 7. Nc3 {[%emt 0:01:09]} d5 {[%emt 0:00:46]} 8. cxd5 {[%emt 0:13:24]} exd5 {[%emt 0:00:10]} 9. Bg2 {[%emt 0:00:08]} O-O {[%emt 0:01:34]} 10. O-O {[%emt 0:00:23]} Bg4 {[%emt 0:09:43]} 11. e3 {[%emt 0:01:58]} Rad8 {[%emt 0:08:34]} 12. a3 {[%emt 0:04:25]} Bxf3 {[%emt 0:33:42]} 13. Bxf3 {[%emt 0:01:15]} Nb8 {[%emt 0:00:16]} 14. b4 {[%emt 0:03:12]} c6 {[%emt 0:02:22]} 15. b5 {[%emt 0:05:30]} Ne4 {[%emt 0:05:23]} 16. Qc2 {[%emt 0:00:44]} Nxc3 {[%emt 0:03:38]} 17. Qxc3 {[%emt 0:00:08]} Rd6 {[%emt 0:12:10]} 18. a4 {[%emt 0:01:06]} Nd7 {[%emt 0:00:22]} 19. Qa5 {[%emt 0:03:43]} cxb5 {[%emt 0:09:38]} 20. axb5 {[%emt 0:03:09]} Nb6 {[%emt 0:00:04]} 21. Qxa7 {[%emt 0:05:59]} Ra8 {[%emt 0:03:49]} 22. Qxa8+ {[%emt 0:00:13]} Nxa8 {[%emt 0:00:04]} 23. Rxa8+ {[%emt 0:00:09]} Rd8 {[%emt 0:00:03]} 24. Rfa1 {[%emt 0:00:12]} Qd6 {[%emt 0:00:08]} 25. Rxd8+ {[%emt 0:03:51]} Qxd8 {[%emt 0:00:05]} 26. Bxd5 {[%emt 0:01:38]} Qb8 {[%emt 0:00:09]} 27. Rc1 {[%emt 0:03:05]} h5 {[%emt 0:02:08]} 28. h4 {[%emt 0:00:53]} Qe8 {[%emt 0:03:58]} 29. Rc5 {[%emt 0:01:19]} Qd7 {[%emt 0:00:13]} 30. Bc4 {[%emt 0:11:43]} g6 {[%emt 0:00:54]} 31. b6 {[%emt 0:03:37]} Qd6 {[%emt 0:00:39]} 32. Rc7 {[%emt 0:02:00]} Qxb6 {[%emt 0:00:08]} 33. Rxf7 {[%emt 0:00:39]} Qb1+ {[%emt 0:00:11]} 34. Kh2 {[%emt 0:00:46]} Kh8 {[%emt 0:00:35]} 35. d5 {[%emt 0:03:15]} Qe4 {[%emt 0:02:38]} 36. d6 {[%emt 0:04:30]} Qxc4 {[%emt 0:00:12]} 37. Rf8+ {[%emt 0:00:12]} Kg7 {[%emt 0:00:23]} 38. d7 {[%emt 0:00:06]} Kxf8 {[%emt 0:00:54]} 39. d8=Q+ {[%emt 0:00:08]} Kg7 {[%emt 0:00:37]} 40. Qe7+ {[%emt 0:00:00]} Kh6 {[%emt 0:00:00]} 41. Qxb7 {[%emt 0:01:26]} Qe2 {[%emt 0:01:17]} 42. Kg2 {[%emt 0:02:38]} Qe1 {[%emt 0:00:13]} 43. e4 {[%emt 0:01:39]} Qe2 {[%emt 0:01:38]} 44. Qe7 {[%emt 0:02:58]} Qe1 {[%emt 0:01:04]} 45. e5 {[%emt 0:01:15]} Qe4+ {[%emt 0:01:53]} 46. Kh2 {[%emt 0:00:23]} 1-0

[Event "VI Sunway Sitges Open 2019"]
[Site "Sitges"]
[Date "2019.12.14"]
[Round "2.24"]
[White "Raja Rithvik R"]
[Black "Dragnev, Valentin"]
[Result "0-1"]
[ECO "E08"]
[WhiteElo "2381"]
[BlackElo "2553"]
[Annotator "ChessBase"]
[PlyCount "128"]
[EventDate "2019.12.13"]
[EventType "swiss"]
[EventCountry "ESP"]
[SourceTitle "playchess.com"]
[Source "ChessBase"]
[SourceQuality "1"]
[TimeControl "40/5400+30:1800+30"]

1. Nf3 {[%emt 0:01:20]} d5 {[%emt 0:01:12]} 2. d4 {[%emt 0:00:37]} Nf6 {[%emt 0:00:00]} 3. c4 {[%emt 0:00:26]} e6 {[%emt 0:00:21]} 4. g3 {[%emt 0:00:19]} Bb4+ {[%emt 0:00:00]} 5. Bd2 {[%emt 0:00:01]} Be7 {[%emt 0:00:10]} 6. Bg2 {[%emt 0:00:09]} O-O {[%emt 0:00:09]} 7. O-O {[%emt 0:00:05]} Nbd7 {[%emt 0:00:18]} 8. Qc2 {[%emt 0:00:04]} c6 {[%emt 0:00:00]} 9. Bf4 b6 {[%emt 0:00:25]} 10. Rd1 {[%emt 0:00:36]} Ba6 {[%emt 0:00:18]} 11. Ne5 {[%emt 0:00:10]} Rc8 {[%emt 0:00:58]} 12. cxd5 {[%emt 0:00:06]} Nxd5 {[%emt 0:00:17]} 13. Nc3 {[%emt 0:01:12]} Nxe5 {[%emt 0:06:09]} 14. Bxe5 {[%emt 0:02:32]} f6 {[%emt 0:00:54]} 15. Bf4 {[%emt 0:00:38]} Nxf4 {[%emt 0:00:06]} 16. gxf4 {[%emt 0:04:05]} f5 {[%emt 0:21:56]} 17. Rac1 {[%emt 0:07:23]} Bb7 {[%emt 0:03:55]} 18. Qb3 {[%emt 0:02:32]} Rf6 {[%emt 0:12:23]} 19. e3 {[%emt 0:00:33]} Kh8 {[%emt 0:05:11]} 20. Kh1 {[%emt 0:32:26]} Bd6 {[%emt 0:03:53]} 21. Ne2 {[%emt 0:25:28]} Rh6 {[%emt 0:03:49]} 22. e4 {[%emt 0:00:37]} fxe4 {[%emt 0:00:00]} 23. Bxe4 {[%emt 0:00:00]} Ba6 {[%emt 0:00:00]} 24. Rc2 {[%emt 0:00:00]} Qf6 {[%emt 0:00:00]} 25. Qf3 {[%emt 0:00:00]} g5 {[%emt 0:01:04]} 26. Rg1 {[%emt 0:00:00]} gxf4 {[%emt 0:04:49]} 27. Rg2 {[%emt 0:02:33]} Bb5 {[%emt 0:11:57]} 28. Kg1 {[%emt 0:06:44]} Rh4 {[%emt 0:03:22]} 29. Nc3 {[%emt 0:03:16]} Bc4 {[%emt 0:01:07]} 30. Bxc6 {[%emt 0:02:18]} Qxd4 {[%emt 0:08:54]} 31. Be4 {[%emt 0:01:20]} Be5 {[%emt 0:03:28]} 32. h3 {[%emt 0:01:09]} Qd7 {[%emt 0:03:27]} 33. Bb7 {[%emt 0:06:22]} Rf8 {[%emt 0:01:06]} 34. Qe4 {[%emt 0:00:49]} Qd4 {[%emt 0:00:00]} 35. Qxd4 {[%emt 0:01:05]} Bxd4 {[%emt 0:00:00]} 36. Ne4 {[%emt 0:01:35]} Bxa2 {[%emt 0:02:15]} 37. Ng5 {[%emt 0:00:00]} e5 {[%emt 0:00:20]} 38. Rc7 {[%emt 0:02:58]} Bg8 {[%emt 0:02:43]} 39. Be4 {[%emt 0:00:00]} a5 {[%emt 0:01:30]} 40. b3 {[%emt 0:00:00]} b5 {[%emt 0:07:46]} 41. Bd3 {[%emt 0:13:15]} f3 {[%emt 0:09:42]} 42. Nxf3 {[%emt 0:01:39]} Rxf3 {[%emt 0:00:20]} 43. Rc8 {[%emt 0:04:01]} Bxf2+ {[%emt 0:00:11]} 44. Rxf2 {[%emt 0:01:19]} Rxf2 {[%emt 0:01:03]} 45. Kxf2 {[%emt 0:03:26]} Rb4 {[%emt 0:07:01]} 46. Ra8 {[%emt 0:00:00]} Rxb3 {[%emt 0:01:49]} 47. Be4 {[%emt 0:00:00]} Rb2+ {[%emt 0:00:18]} 48. Kg3 {[%emt 0:00:00]} Kg7 {[%emt 0:00:24]} 49. Rxa5 {[%emt 0:01:32]} Rb3+ {[%emt 0:01:27]} 50. Kg2 {[%emt 0:00:00]} h5 {[%emt 0:02:56]} 51. h4 {[%emt 0:00:00]} Rb2+ {[%emt 0:00:00]} 52. Kg3 {[%emt 0:00:00]} Rb3+ {[%emt 0:00:00]} 53. Kg2 {[%emt 0:02:24]} Kf6 {[%emt 0:02:22]} 54. Ra6+ {[%emt 0:00:00]} Ke7 {[%emt 0:00:06]} 55. Bf3 {[%emt 0:00:00]} b4 {[%emt 0:00:33]} 56. Bxh5 {[%emt 0:00:00]} Bd5+ {[%emt 0:00:44]} 57. Kh2 {[%emt 0:00:00]} e4 {[%emt 0:00:00]} 58. Ra5 {[%emt 0:01:04]} Rd3 {[%emt 0:00:23]} 59. Rb5 {[%emt 0:00:12]} b3 {[%emt 0:02:54]} 60. Bg6 {[%emt 0:04:13]} Rd2+ {[%emt 0:00:00]} 61. Kg3 {[%emt 0:00:20]} e3 {[%emt 0:01:15]} 62. Be4 {[%emt 0:01:38]} Bxe4 {[%emt 0:00:00]} 63. Re5+ {[%emt 0:00:45]} Kd6 64. Rxe4 {[%emt 0:00:41]} b2 {[%emt 0:00:20]} 0-1

[Event "VI Sunway Sitges Open 2019"]
[Site "Sitges"]
[Date "2019.12.14"]
[Round "2.25"]
[White "Gukesh D"]
[Black "Vaishali R"]
[Result "1-0"]
[ECO "A05"]
[WhiteElo "2547"]
[BlackElo "2376"]
[Annotator "ChessBase"]
[PlyCount "79"]
[EventDate "2019.12.13"]
[EventType "swiss"]
[EventCountry "ESP"]
[SourceTitle "playchess.com"]
[Source "ChessBase"]
[SourceQuality "1"]
[TimeControl "40/5400+30:1800+30"]

1. Nf3 {[%emt 0:00:02]} Nf6 {[%emt 0:02:51]} 2. g3 {[%emt 0:00:13]} b5 {[%emt 0:01:13]} 3. Bg2 {[%emt 0:04:09]} Bb7 {[%emt 0:00:25]} 4. d3 {[%emt 0:01:12]} c5 {[%emt 0:01:01]} 5. e4 {[%emt 0:00:44]} d6 {[%emt 0:00:00]} 6. O-O {[%emt 0:01:05]} e6 {[%emt 0:02:11]} 7. Nfd2 {[%emt 0:04:10]} Qc7 {[%emt 0:00:00]} 8. a4 {[%emt 0:00:00]} b4 {[%emt 0:01:46]} 9. Nc4 {[%emt 0:01:42]} Be7 {[%emt 0:03:21]} 10. Bf4 {[%emt 0:04:52]} e5 {[%emt 0:06:26]} 11. Bg5 {[%emt 0:02:32]} Nbd7 {[%emt 0:13:53]} 12. Nbd2 {[%emt 0:16:40]} h6 {[%emt 0:04:39]} 13. Bxf6 {[%emt 0:05:54]} Nxf6 {[%emt 0:00:00]} 14. Ne3 {[%emt 0:05:24]} O-O {[%emt 0:00:37]} 15. Ndc4 {[%emt 0:08:53]} Rad8 {[%emt 0:07:43]} 16. Qe2 {[%emt 0:02:15]} Rfe8 {[%emt 0:02:45]} 17. f4 {[%emt 0:39:50]} Bc8 {[%emt 0:09:06]} 18. fxe5 {[%emt 0:00:00]} dxe5 {[%emt 0:00:39]} 19. Rf2 {[%emt 0:04:30]} Be6 {[%emt 0:00:48]} 20. Raf1 {[%emt 0:00:25]} b3 {[%emt 0:08:54]} 21. cxb3 {[%emt 0:00:00]} Qb7 {[%emt 0:08:56]} 22. Nd5 {[%emt 0:03:31]} Qxb3 {[%emt 0:05:43]} 23. a5 {[%emt 0:04:53]} Qb8 {[%emt 0:02:50]} 24. Nce3 {[%emt 0:01:24]} Nh7 {[%emt 0:02:12]} 25. Qh5 {[%emt 0:00:00]} Bg5 {[%emt 0:13:05]} 26. Rxf7 {[%emt 0:00:00]} Bxe3+ {[%emt 0:00:24]} 27. Nxe3 {[%emt 0:00:00]} Bxf7 {[%emt 0:00:44]} 28. Qxf7+ {[%emt 0:00:00]} Kh8 {[%emt 0:00:01]} 29. Nf5 {[%emt 0:00:00]} Rg8 {[%emt 0:00:22]} 30. Ne7 {[%emt 0:00:00]} Rd6 {[%emt 0:01:23]} 31. Nxg8 {[%emt 0:00:00]} Qxg8 {[%emt 0:00:00]} 32. Qxa7 {[%emt 0:00:00]} Ng5 {[%emt 0:02:12]} 33. Qxc5 {[%emt 0:00:43]} Rd8 {[%emt 0:00:00]} 34. Qxe5 {[%emt 0:00:00]} Qb3 {[%emt 0:00:35]} 35. Qc3 {[%emt 0:00:50]} Qb5 {[%emt 0:00:13]} 36. d4 {[%emt 0:00:57]} Qe2 {[%emt 0:00:25]} 37. Re1 {[%emt 0:00:00]} Qa6 {[%emt 0:01:03]} 38. e5 {[%emt 0:00:00]} Rc8 {[%emt 0:00:00]} 39. Qd2 {[%emt 0:00:00]} Qb5 {[%emt 0:00:58]} 40. e6 {[%emt 0:00:22]} 1-0

[Event "VI Sunway Sitges Open 2019"]
[Site "Sitges"]
[Date "2019.12.14"]
[Round "2.26"]
[White "Meister, Peter"]
[Black "Shevchenko, Kirill"]
[Result "0-1"]
[ECO "A65"]
[WhiteElo "2373"]
[BlackElo "2547"]
[Annotator "ChessBase"]
[PlyCount "76"]
[EventDate "2019.12.13"]
[EventType "swiss"]
[EventCountry "ESP"]
[SourceTitle "playchess.com"]
[Source "ChessBase"]
[SourceQuality "1"]
[TimeControl "40/5400+30:1800+30"]

1. d4 {[%emt 0:00:01]} Nf6 {[%emt 0:00:07]} 2. c4 {[%emt 0:00:21]} g6 {[%emt 0:00:07]} 3. f3 {[%emt 0:00:30]} c5 {[%emt 0:01:30]} 4. d5 {[%emt 0:00:32]} d6 {[%emt 0:00:28]} 5. e4 {[%emt 0:00:18]} e6 {[%emt 0:00:39]} 6. Bg5 {[%emt 0:02:30]} Bg7 {[%emt 0:03:38]} 7. Nc3 {[%emt 0:02:47]} exd5 {[%emt 0:08:04]} 8. cxd5 {[%emt 0:00:56]} h6 {[%emt 0:04:55]} 9. Be3 {[%emt 0:00:37]} O-O {[%emt 0:00:19]} 10. Qd2 {[%emt 0:01:09]} Kh7 {[%emt 0:09:47]} 11. Nge2 {[%emt 0:05:30]} Nbd7 {[%emt 0:02:02]} 12. Nc1 {[%emt 0:25:43]} Ne5 {[%emt 0:07:59]} 13. Be2 {[%emt 0:00:51]} Ng8 {[%emt 0:14:06]} 14. O-O {[%emt 0:19:05]} f5 {[%emt 0:01:38]} 15. f4 {[%emt 0:01:58]} Nd7 {[%emt 0:02:32]} 16. exf5 {[%emt 0:10:39]} gxf5 {[%emt 0:00:36]} 17. g4 {[%emt 0:04:04]} Re8 {[%emt 0:06:34]} 18. Bf2 {[%emt 0:01:36]} fxg4 {[%emt 0:02:34]} 19. Bxg4 {[%emt 0:01:19]} Ndf6 {[%emt 0:04:46]} 20. Qd3+ {[%emt 0:01:17]} Kh8 {[%emt 0:00:08]} 21. Bxc8 {[%emt 0:00:43]} Qxc8 {[%emt 0:00:07]} 22. f5 {[%emt 0:00:34]} Ng4 {[%emt 0:07:53]} 23. N1e2 {[%emt 0:00:39]} c4 {[%emt 0:00:51]} 24. Qf3 {[%emt 0:06:02]} Ne5 {[%emt 0:02:18]} 25. Qh3 {[%emt 0:00:41]} Nd3 {[%emt 0:00:53]} 26. Bd4 {[%emt 0:04:26]} Qd7 {[%emt 0:04:41]} 27. Kh1 {[%emt 0:04:00]} Be5 {[%emt 0:05:34]} 28. Qh4 {[%emt 0:00:47]} b5 {[%emt 0:01:16]} 29. Bxe5+ {[%emt 0:03:28]} Rxe5 {[%emt 0:01:45]} 30. f6 {[%emt 0:00:31]} Qf7 {[%emt 0:03:24]} 31. Rg1 {[%emt 0:01:24]} b4 {[%emt 0:02:56]} 32. Rg7 {[%emt 0:00:04]} Qh5 {[%emt 0:00:16]} 33. Qg3 {[%emt 0:00:21]} Nxf6 {[%emt 0:02:09]} 34. Rg1 {[%emt 0:00:04]} Rg5 {[%emt 0:00:06]} 35. Rxg5 {[%emt 0:00:19]} hxg5 {[%emt 0:00:19]} 36. Nd1 {[%emt 0:01:50]} Qxe2 {[%emt 0:01:06]} 37. Qh3+ {[%emt 0:00:03]} Qh5 {[%emt 0:00:17]} 38. Qf5 {[%emt 0:00:04]} Rf8 {[%emt 0:00:23]} 0-1

[Event "VI Sunway Sitges Open 2019"]
[Site "Sitges"]
[Date "2019.12.14"]
[Round "2.27"]
[White "Nasuta, Grzegorz"]
[Black "Valenzuela Gomez, Fernando"]
[Result "1-0"]
[ECO "B52"]
[WhiteElo "2545"]
[BlackElo "2373"]
[Annotator "ChessBase"]
[PlyCount "45"]
[EventDate "2019.12.13"]
[EventType "swiss"]
[EventCountry "ESP"]
[SourceTitle "playchess.com"]
[Source "ChessBase"]
[SourceQuality "1"]
[TimeControl "40/5400+30:1800+30"]

1. e4 {[%emt 0:00:00]} c5 {[%emt 0:07:16]} 2. Nf3 {[%emt 0:00:00]} d6 {[%emt 0:00:09]} 3. Bb5+ {[%emt 0:00:01]} Bd7 {[%emt 0:00:29]} 4. Bxd7+ {[%emt 0:00:40]} Qxd7 {[%emt 0:00:18]} 5. c4 {[%emt 0:00:24]} e5 {[%emt 0:00:10]} 6. Nc3 {[%emt 0:01:15]} f5 {[%emt 0:00:38]} 7. exf5 {[%emt 0:11:06]} Qxf5 {[%emt 0:01:17]} 8. O-O {[%emt 0:07:17]} Nf6 {[%emt 0:00:33]} 9. d3 {[%emt 0:06:53]} Be7 {[%emt 0:04:46]} 10. Ng5 {[%emt 0:04:44]} O-O {[%emt 0:05:38]} 11. f4 {[%emt 0:02:57]} exf4 {[%emt 0:02:14]} 12. Bxf4 {[%emt 0:06:38]} Nc6 {[%emt 0:01:55]} 13. Qe2 {[%emt 0:02:47]} Qg6 {[%emt 0:24:17]} 14. Ne6 {[%emt 0:12:35]} Rf7 {[%emt 0:00:37]} 15. Rae1 {[%emt 0:06:00]} Ng4 {[%emt 0:04:55]} 16. Nd5 {[%emt 0:18:24]} Bf6 {[%emt 0:12:58]} 17. Bxd6 {[%emt 0:05:36]} Nd4 {[%emt 0:06:46]} 18. Nxf6+ {[%emt 0:04:41]} Rxf6 {[%emt 0:03:51]} 19. Nxd4 {[%emt 0:00:06]} Rxf1+ {[%emt 0:06:24]} 20. Kxf1 {[%emt 0:01:44]} Qxd6 {[%emt 0:02:51]} 21. Qxg4 {[%emt 0:00:47]} cxd4 {[%emt 0:02:17]} 22. Qe6+ {[%emt 0:00:05]} Qxe6 {[%emt 0:00:05]} 23. Rxe6 {[%emt 0:00:05]} 1-0

[Event "VI Sunway Sitges Open 2019"]
[Site "Sitges"]
[Date "2019.12.14"]
[Round "2.28"]
[White "Gorshtein, Ido"]
[Black "Erigaisi Arjun"]
[Result "1/2-1/2"]
[ECO "A13"]
[WhiteElo "2372"]
[BlackElo "2544"]
[Annotator "ChessBase"]
[PlyCount "65"]
[EventDate "2019.12.13"]
[EventType "swiss"]
[EventCountry "ESP"]
[SourceTitle "playchess.com"]
[Source "ChessBase"]
[SourceQuality "1"]
[TimeControl "40/5400+30:1800+30"]

1. c4 {[%emt 0:00:00]} e6 {[%emt 0:03:08]} 2. Nf3 {[%emt 0:00:00]} Nf6 {[%emt 0:00:38]} 3. b3 {[%emt 0:01:17]} d5 {[%emt 0:00:36]} 4. Bb2 {[%emt 0:10:26]} c5 {[%emt 0:00:29]} 5. e3 {[%emt 0:03:16]} Nc6 {[%emt 0:00:46]} 6. cxd5 {[%emt 0:00:09]} exd5 {[%emt 0:00:10]} 7. Bb5 {[%emt 0:00:37]} Bg4 {[%emt 0:03:08]} 8. h3 {[%emt 0:03:22]} Bh5 {[%emt 0:01:01]} 9. g4 {[%emt 0:02:14]} Bg6 {[%emt 0:00:10]} 10. Ne5 {[%emt 0:01:23]} Qc7 {[%emt 0:02:02]} 11. Bxc6+ {[%emt 0:06:53]} bxc6 {[%emt 0:00:08]} 12. d3 {[%emt 0:00:12]} d4 {[%emt 0:10:47]} 13. Nxg6 {[%emt 0:01:29]} hxg6 {[%emt 0:00:07]} 14. e4 {[%emt 0:04:56]} Qf4 {[%emt 0:03:22]} 15. Ke2 {[%emt 0:10:21]} Nxe4 {[%emt 0:35:45]} 16. dxe4 {[%emt 0:02:33]} Qxe4+ {[%emt 0:01:10]} 17. Kd2 {[%emt 0:00:05]} Be7 {[%emt 0:00:06]} 18. Qe1 {[%emt 0:15:20]} Qf4+ {[%emt 0:00:33]} 19. Kc2 {[%emt 0:18:07]} O-O-O {[%emt 0:00:12]} 20. Nd2 {[%emt 0:03:53]} Bf6 {[%emt 0:09:19]} 21. Kb1 {[%emt 0:02:56]} Rde8 {[%emt 0:07:39]} 22. Qc1 {[%emt 0:03:54]} Kd7 {[%emt 0:10:39]} 23. Rd1 {[%emt 0:02:54]} Re2 {[%emt 0:01:33]} 24. Qxc5 {[%emt 0:01:27]} Rxd2 {[%emt 0:01:24]} 25. Qxa7+ {[%emt 0:00:04]} Ke6 {[%emt 0:03:17]} 26. Re1+ {[%emt 0:00:04]} Be5 {[%emt 0:00:05]} 27. Bc1 {[%emt 0:02:04]} Rd1 {[%emt 0:00:49]} 28. Kc2 {[%emt 0:01:26]} Qxf2+ {[%emt 0:00:59]} 29. Kxd1 {[%emt 0:00:09]} Qf3+ {[%emt 0:00:16]} 30. Kc2 {[%emt 0:01:08]} Qc3+ {[%emt 0:00:22]} 31. Kd1 {[%emt 0:00:15]} Qf3+ {[%emt 0:01:09]} 32. Kc2 {[%emt 0:00:12]} Qc3+ {[%emt 0:00:48]} 33. Kd1 {[%emt 0:00:02]} 1/2-1/2

[Event "VI Sunway Sitges Open 2019"]
[Site "Sitges"]
[Date "2019.12.14"]
[Round "2.29"]
[White "Li, Di"]
[Black "Manu David Suthandram R"]
[Result "1-0"]
[ECO "B30"]
[WhiteElo "2543"]
[BlackElo "2369"]
[Annotator "ChessBase"]
[PlyCount "61"]
[EventDate "2019.12.13"]
[EventType "swiss"]
[EventCountry "ESP"]
[SourceTitle "playchess.com"]
[Source "ChessBase"]
[SourceQuality "1"]
[TimeControl "40/5400+30:1800+30"]

1. e4 {[%emt 0:00:09]} c5 {[%emt 0:11:31]} 2. Nf3 {[%emt 0:00:41]} Nc6 {[%emt 0:00:09]} 3. Bb5 {[%emt 0:00:16]} e6 {[%emt 0:01:17]} 4. Bxc6 {[%emt 0:00:53]} bxc6 {[%emt 0:00:27]} 5. d3 {[%emt 0:00:25]} d6 {[%emt 0:02:41]} 6. e5 {[%emt 0:03:55]} dxe5 {[%emt 0:12:51]} 7. Nxe5 {[%emt 0:01:54]} Qd5 {[%emt 0:01:10]} 8. Nf3 {[%emt 0:02:05]} c4 {[%emt 0:00:51]} 9. O-O {[%emt 0:27:41]} cxd3 {[%emt 0:06:11]} 10. Nc3 {[%emt 0:00:13]} Qa5 {[%emt 0:02:00]} 11. Qxd3 {[%emt 0:03:12]} Ba6 {[%emt 0:08:50]} 12. Qe4 {[%emt 0:00:22]} Rc8 {[%emt 0:00:04]} 13. Re1 {[%emt 0:02:29]} Nf6 {[%emt 0:00:44]} 14. Qh4 {[%emt 0:02:30]} Qb4 {[%emt 0:20:15]} 15. Ne4 {[%emt 0:03:19]} Nxe4 {[%emt 0:07:02]} 16. Rxe4 {[%emt 0:00:15]} Qb6 {[%emt 0:00:54]} 17. Qh5 {[%emt 0:07:01]} g6 {[%emt 0:00:49]} 18. Qe5 {[%emt 0:00:51]} Qb5 {[%emt 0:02:05]} 19. Bf4 {[%emt 0:00:36]} Rg8 {[%emt 0:00:43]} 20. Qc3 {[%emt 0:01:27]} h6 {[%emt 0:00:28]} 21. Rae1 {[%emt 0:02:49]} g5 {[%emt 0:01:07]} 22. Bg3 {[%emt 0:01:12]} c5 {[%emt 0:00:54]} 23. Qf6 {[%emt 0:13:10]} Be7 {[%emt 0:04:26]} 24. Qxh6 {[%emt 0:04:52]} Bb7 {[%emt 0:02:10]} 25. Qh7 {[%emt 0:06:11]} Rf8 {[%emt 0:00:09]} 26. Rxe6 {[%emt 0:00:53]} fxe6 {[%emt 0:04:54]} 27. Qg6+ {[%emt 0:00:38]} Kd8 {[%emt 0:00:14]} 28. Rd1+ {[%emt 0:00:16]} Qd7 {[%emt 0:00:51]} 29. Rxd7+ {[%emt 0:00:19]} Kxd7 {[%emt 0:00:06]} 30. Ne5+ {[%emt 0:00:11]} Kd6 {[%emt 0:00:33]} 31. Qd3+ {[%emt 0:00:54] Kd5} 1-0